bitfinex/quotes_ETHUSD_20241030
["timestamp","ask_amount","ask_price","bid_price","bid_amount"]
[1730303623998,3.0,2691.2,2690.9,1.5755]
[1730303624198,3.71583,2691.2,2690.9,1.5755]
[1730303625522,3.7164,2690.8,2690.7,1.5755]
[1730303625698,3.7164,2690.8,2690.3,1.5755]
[1730303625899,3.7164,2690.8,2690.3,2.83273597]
[1730303626206,3.0,2690.8,2690.3,2.83273597]
[1730303626514,3.0,2690.8,2689.8,0.01]
[1730303626515,3.71685,2690.5,2690.0,1.5374]
[1730303626823,3.71685,2690.5,2689.9,3.71752]
[1730303626824,3.71727,2690.2,2689.6,5.25542]
[1730303627026,3.71733,2690.1,2689.6,1.5374]
[1730303627214,5.30544,2690.4,2689.6,5.780889]
[1730303627404,3.0,2690.1,2689.6,5.780889]
[1730303627809,3.71692,2690.4,2689.8,3.71763]
[1730303628211,7.43397,2690.4,2689.8,0.07434746]
[1730303628445,3.71707,2690.3,2689.8,0.95884965]
[1730303628641,3.71719,2690.2,2689.7,1.553]
[1730303629010,3.71762,2689.9,2689.4,1.553]
[1730303629314,3.71782,2689.8,2689.5,0.06086829]
[1730303629914,3.71755,2690.0,2689.5,0.06086829]
[1730303630716,3.71763,2689.9,2689.5,0.06086829]
[1730303630916,3.7175,2690.0,2689.5,0.06086829]
[1730303631108,3.0,2690.1,2689.7,5.35597]
[1730303631327,6.71726,2690.2,2689.7,5.35597]
[1730303631553,6.71726,2690.2,2689.7,1.6381]
[1730303632550,3.0,2690.2,2689.3,3.71833]
[1730303632759,3.0,2690.3,2689.4,5.40536772]
[1730303632960,3.71741,2690.1,2689.5,3.71809]
[1730303633257,3.71741,2690.1,2689.5,7.50572377]
[1730303633622,3.0,2690.1,2689.5,3.78763377]
[1730303633948,3.0,2690.1,2689.6,4.25798338]
[1730303634134,6.71734,2690.1,2689.6,4.25798338]
[1730303634529,6.71734,2690.1,2689.7,0.06099313]
[1730303636132,3.71748,2690.0,2689.7,0.06099313]
[1730303636719,3.71748,2690.0,2689.5,3.71812]
[1730303636920,3.71748,2690.0,2689.8,0.0608885]
[1730303637121,3.71748,2690.0,2689.5,3.79244513]
[1730303637349,3.71748,2690.0,2689.8,0.0608885]
[1730303637573,3.71748,2690.0,2689.4,5.3311]
[1730303637885,3.71762,2689.9,2689.4,5.3311]
[1730303638187,3.71762,2689.9,2689.5,0.06120242]
[1730303641014,3.71692,2690.4,2689.9,3.71756]
[1730303641158,3.717,2690.4,2690.0,1.914556]
[1730303641488,3.71706,2690.3,2690.0,1.5428]
[1730303641983,3.7172,2690.2,2689.7,1.5428]
[1730303642156,3.71706,2690.3,2689.7,1.5428]
[1730303642355,3.71742,2690.1,2689.8,0.06958686]
[1730303642777,3.71742,2690.1,2689.7,1.5428]
[1730303642986,3.71742,2690.1,2689.8,0.0608885]
[1730303643291,3.71742,2690.1,2689.7,1.5428]
[1730303643447,3.71742,2690.1,2689.8,0.0608885]
[1730303643654,3.71742,2690.1,2689.7,2.44810023]
[1730303643868,3.71742,2690.1,2689.8,0.0608885]
[1730303644163,3.71742,2690.1,2689.7,2.44810023]
[1730303644364,3.71722,2690.2,2689.8,0.06958686]
[1730303644683,3.71722,2690.2,2689.7,6.16597023]
[1730303644890,7.43425,2690.3,2689.8,0.0608885]
[1730303645061,7.43425,2690.3,2689.7,6.16597023]
[1730303645398,3.71706,2690.3,2689.8,0.0608885]
[1730303645696,7.4342,2690.3,2689.7,6.16597023]
[1730303645871,3.71706,2690.3,2689.8,4.7717292]
[1730303646071,3.71706,2690.3,2689.8,8.4894092]
[1730303646273,3.0,2690.3,2689.9,3.71759]
[1730303646802,3.71707,2690.3,2689.9,3.71759]
[1730303648280,3.0,2690.4,2689.9,4.34295107]
[1730303648601,3.0,2690.4,2690.1,5.21942]
[1730303649696,3.0,2690.4,2690.1,1.5021]
[1730303649904,3.71712,2690.3,2690.1,1.5021]
[1730303651364,3.71719,2690.2,2689.8,1.5688]
[1730303651684,3.71748,2690.0,2689.8,1.62963506]
[1730303651890,3.71754,2690.0,2689.8,1.62963506]
[1730303652074,3.71734,2690.1,2689.8,1.5688]
[1730303652273,3.71734,2690.1,2689.8,1.62963506]
[1730303652478,3.71753,2690.0,2689.8,1.62963506]
[1730303652662,3.71753,2690.0,2689.8,0.06083506]
[1730303652894,3.71753,2690.0,2689.6,1.5825]
[1730303653081,3.71753,2690.0,2689.7,0.0609397]
[1730303654613,3.71734,2690.1,2689.7,0.0609397]
[1730303655273,3.71729,2690.2,2689.6,1.5825]
[1730303655468,3.71729,2690.2,2689.7,3.71781]
[1730303656182,3.71734,2690.1,2689.7,3.71781]
[1730303657818,3.71755,2690.0,2689.6,2.112555]
[1730303658108,3.71761,2689.9,2689.1,1.6646]
[1730303658276,3.71831,2689.4,2689.1,1.6646]
[1730303658480,3.71845,2689.3,2689.1,1.6646]
[1730303659079,3.71822,2689.5,2689.1,1.6646]
[1730303660473,6.71802,2689.6,2689.1,5.38329]
[1730303660990,3.71817,2689.5,2689.1,5.38329]
[1730303661205,3.71817,2689.5,2689.1,1.6646]
[1730303661383,7.43643,2689.5,2689.1,1.6646]
[1730303661564,3.71817,2689.5,2689.1,1.6646]
[1730303662018,3.71817,2689.5,2689.1,5.38331]
[1730303663376,3.0,2689.6,2689.2,3.71856]
[1730303663881,6.71802,2689.6,2689.2,3.71856]
[1730303664082,3.71817,2689.5,2689.1,1.6646]
[1730303664397,3.71857,2689.2,2688.8,1.6312]
[1730303664566,6.71803,2689.6,2688.8,1.6312]
[1730303664567,1.5436,2689.4,2688.8,1.6312]
[1730303664969,3.71864,2689.2,2688.8,1.6312]
[1730303665198,1.5436,2689.4,2688.5,3.71943]
[1730303665382,1.5436,2689.4,2688.5,1.6341]
[1730303665383,3.71903,2688.9,2688.5,1.6341]
[1730303666311,7.43813,2688.9,2688.5,1.6341]
[1730303666670,3.71916,2688.8,2688.5,1.6341]
[1730303667680,3.7194,2688.7,2688.3,1.5257]
[1730303667879,7.43877,2688.7,2688.3,1.5257]
[1730303668076,3.71937,2688.7,2688.3,1.5257]
[1730303671004,3.71937,2688.7,2688.3,5.24551]
[1730303671922,3.0,2688.8,2688.4,3.71967]
[1730303672119,3.71881,2689.1,2688.4,0.896525]
[1730303672322,3.71837,2689.4,2688.8,3.71904]
[1730303672496,3.0,2689.3,2688.9,5.36071]
[1730303672695,3.0,2689.4,2688.9,5.36071]
[1730303673020,3.0,2689.2,2688.9,5.36071]
[1730303673508,3.0,2689.2,2688.9,1.6418]
[1730303677412,6.71858,2689.2,2688.9,1.6418]
[1730303677921,7.4366,2689.4,2688.6,5.232]
[1730303678250,5.28457,2689.0,2688.6,1.5126]
[1730303678440,3.71887,2689.0,2688.6,1.5126]
[1730303678643,3.71887,2689.0,2688.6,5.23199]
[1730303680133,3.71887,2689.0,2688.6,1.5126]
[1730303681449,3.71887,2689.0,2688.6,5.23198]
[1730303682609,1.5657,2689.2,2688.6,5.23198]
[1730303682810,6.71865,2689.2,2688.7,0.07438136]
[1730303683011,3.0,2689.2,2688.8,3.71905]
[1730303683210,3.0,2689.2,2688.9,1.6559]
[1730303683921,6.71858,2689.2,2688.9,1.6559]
[1730303684115,3.71873,2689.1,2688.9,1.6559]
[1730303684415,3.71901,2688.9,2688.6,1.6559]
[1730303684713,4.6547,2689.1,2688.6,1.6559]
[1730303684925,3.71886,2689.0,2688.6,1.6559]
[1730303685552,3.0,2689.1,2688.7,3.71915]
[1730303685708,3.0,2689.1,2688.6,6.284722]
[1730303685913,3.0,2689.1,2688.7,3.71926]
[1730303686114,3.0,2689.1,2688.6,2.565402]
[1730303686315,3.71892,2689.0,2688.6,1.6559]
[1730303686814,3.0,2689.1,2688.6,1.6559]
[1730303687044,3.0,2689.1,2688.7,3.7192]
[1730303687239,3.0,2689.1,2688.8,3.71912]
[1730303687924,3.0,2689.1,2688.7,3.7192]
[1730303688316,6.71879,2689.1,2688.6,5.37529]
[1730303688732,3.71895,2689.0,2688.6,1.6559]
[1730303689062,7.43809,2688.9,2688.6,1.6559]
[1730303689261,3.71913,2688.8,2688.3,5.24955]
[1730303689558,3.71899,2688.9,2688.3,1.5298]
[1730303689750,3.71927,2688.7,2688.3,1.5298]
[1730303690255,3.71927,2688.7,2688.2,3.71988]
[1730303690554,3.71942,2688.6,2688.2,3.71988]
[1730303691054,3.71923,2688.8,2688.3,3.7198]
[1730303691726,3.71934,2688.7,2688.2,4.257688]
[1730303692063,3.71934,2688.7,2688.1,1.6582]
[1730303692064,3.71971,2688.4,2688.1,1.6582]
[1730303692436,3.71998,2688.2,2687.8,1.5904]
[1730303692915,3.71998,2688.2,2687.8,5.31089]
[1730303693264,5.3505,2688.6,2687.6,5.23973]
[1730303693265,3.72014,2688.1,2687.6,5.23973]
[1730303693462,3.71997,2688.2,2687.7,3.72056]
[1730303693669,3.71997,2688.2,2687.7,7.965046]
[1730303694219,3.71977,2688.4,2687.8,3.72048]
[1730303694418,3.71988,2688.3,2687.8,3.72048]
[1730303697381,3.71988,2688.3,2687.9,3.72035]
[1730303697526,3.7197,2688.4,2688.0,5.36562]
[1730303697866,3.7197,2688.4,2688.0,1.6454]
[1730303698049,7.43945,2688.4,2688.0,1.6454]
[1730303698235,4.631,2688.6,2688.0,1.6454]
[1730303698448,3.0,2688.5,2688.1,3.72002]
[1730303698635,3.0,2688.6,2688.2,3.7199]
[1730303700060,6.71941,2688.6,2688.2,3.7199]
[1730303700643,3.71914,2688.8,2688.3,3.71978]
[1730303700832,3.78254202,2689.3,2688.3,3.71978]
[1730303700833,3.7188,2689.1,2688.5,3.71949]
[1730303701164,3.7188,2689.1,2688.6,3.71939]
[1730303701568,7.43762,2689.1,2688.6,3.71939]
[1730303701727,7.43762,2689.1,2688.5,3.71953]
[1730303701728,3.719,2688.9,2688.5,3.71953]
[1730303702247,3.71885,2689.0,2688.5,3.71954]
[1730303702974,3.0,2688.9,2688.5,3.71954]
[1730303703180,3.0,2688.8,2688.5,3.71954]
[1730303704170,6.71914,2688.8,2688.4,5.36348]
[1730303704373,3.7194,2688.7,2688.2,1.5661]
[1730303704671,3.71955,2688.5,2688.2,1.5661]
[1730303705048,3.7194,2688.7,2688.2,1.5661]
[1730303705049,3.7194,2688.6,2688.2,1.5661]
[1730303706938,3.71955,2688.5,2688.2,1.5661]
[1730303708138,3.71941,2688.6,2688.2,1.5661]
[1730303709373,3.71941,2688.6,2688.2,5.28604]
[1730303709578,3.7196,2688.5,2688.2,1.5661]
[1730303709753,3.7196,2688.5,2688.0,5.26834]
[1730303709754,3.7197,2688.4,2688.0,5.26834]
[1730303709951,1.6652,2688.3,2687.7,1.5482]
[1730303710153,3.72066,2687.7,2687.4,1.5614]
[1730303710468,3.0,2687.6,2687.1,1.5614]
[1730303710781,3.72116,2687.4,2686.9,5.33896904]
[1730303711271,3.72124,2687.3,2686.9,1.61722904]
[1730303711678,3.72124,2687.3,2686.9,5.33896904]
[1730303711983,3.72124,2687.3,2686.9,1.61722904]
[1730303712134,3.72124,2687.3,2686.9,5.33897904]
[1730303712355,3.72124,2687.3,2686.9,5.28315]
[1730303712770,3.0,2687.4,2686.9,5.28315]
[1730303713609,3.72107,2687.4,2686.9,5.28315]
[1730303714094,4.5722,2687.5,2686.9,6.183587]
[1730303714259,3.0,2687.6,2687.1,3.72137]
[1730303714462,3.0,2687.6,2687.2,3.72125]
[1730303714691,3.0,2687.7,2687.3,3.72115]
[1730303714896,3.0,2687.9,2687.4,5.32508]
[1730303715065,3.0,2687.9,2687.4,1.6041]
[1730303715267,3.0,2687.7,2687.4,1.6041]
[1730303716302,3.72082,2687.6,2687.2,1.5873]
[1730303716600,3.72102,2687.5,2687.0,1.5873]
[1730303716896,1.6607,2687.6,2687.0,1.5873]
[1730303717199,3.0,2687.7,2687.2,3.72127]
[1730303717408,6.72069,2687.7,2687.2,3.72127]
[1730303718125,6.72034,2688.0,2687.4,1.5323]
[1730303718266,3.0,2687.8,2687.5,3.72091]
[1730303718595,3.0,2687.9,2687.5,3.72091]
[1730303718796,6.72039,2687.9,2687.4,1.5323]
[1730303719299,3.72071,2687.7,2687.4,1.5323]
[1730303719727,3.72071,2687.7,2686.7,3.56256969]
[1730303719886,3.0,2687.9,2686.6,0.01]
[1730303719887,3.721,2687.5,2687.0,3.72161]
[1730303720084,3.72114,2687.4,2686.9,3.72176]
[1730303720287,3.72122,2687.3,2686.9,3.72176]
[1730303720610,3.0,2687.4,2686.9,3.72168]
[1730303720811,3.0,2687.4,2686.8,5.30929]
[1730303720812,3.72121,2687.3,2686.8,5.30929]
[1730303721716,3.0,2687.4,2686.8,5.30929]
[1730303721892,3.0,2687.4,2687.0,3.72161]
[1730303722289,6.72113,2687.4,2687.0,3.72154]
[1730303722994,6.72113,2687.4,2686.8,5.840109]
[1730303723302,3.72135,2687.2,2686.8,5.30918]
[1730303723473,3.72121,2687.3,2686.8,9.031]
[1730303723677,3.72121,2687.3,2686.8,5.30918]
[1730303723916,3.0,2687.4,2686.8,1.5874]
[1730303724074,6.72114,2687.4,2686.9,3.72176]
[1730303724279,3.72122,2687.3,2686.9,3.72176]
[1730303724506,6.72108,2687.4,2686.9,7.44341]
[1730303725106,3.0,2687.4,2686.9,3.72165]
[1730303725284,4.6642,2687.6,2687.0,3.72155]
[1730303725483,4.6642,2687.6,2687.0,3.72153]
[1730303725484,3.0,2687.4,2687.0,3.72153]
[1730303726323,3.0,2687.5,2687.1,3.72139]
[1730303726496,3.0,2687.5,2687.2,1.5843]
[1730303727283,3.72079,2687.6,2687.2,1.5843]
[1730303727494,3.72093,2687.5,2687.2,1.5843]
[1730303728126,3.7213,2687.3,2686.9,1.5929]
[1730303728648,3.72109,2687.4,2687.0,3.72155]
[1730303729405,6.72085,2687.6,2687.2,3.72133]
[1730303729908,3.72085,2687.6,2687.3,1.5067]
[1730303730119,3.0,2687.7,2687.3,5.750593]
[1730303730323,7.44012,2688.2,2687.6,1.5067]
[1730303730529,7.44012,2688.2,2687.7,3.72065]
[1730303730707,3.72006,2688.2,2687.6,1.5067]
[1730303731535,3.72019,2688.1,2687.6,5.22745]
[1730303731899,3.0,2688.0,2687.6,5.22745]
[1730303734050,3.72063,2687.8,2687.2,3.72128]
[1730303734208,3.72101,2687.5,2687.0,1.6534]
[1730303734532,4.5043,2687.8,2687.0,1.6534]
[1730303734533,3.7214,2687.2,2687.0,1.6534]
[1730303734736,3.72148,2687.1,2686.8,1.5935]
[1730303735117,3.7212,2687.3,2686.8,1.5935]
[1730303735325,3.7212,2687.3,2686.8,5.31528]
[1730303736841,3.72138,2687.2,2686.8,5.31538]
[1730303737051,3.7212,2687.3,2686.8,5.31538]
[1730303737232,3.7212,2687.3,2686.9,3.72175]
[1730303737413,3.0,2687.6,2687.0,0.07442869]
[1730303737614,3.0,2687.6,2687.3,1.5423]
[1730303737838,6.72086,2687.6,2687.3,1.5423]
[1730303738244,3.0,2687.6,2687.3,1.5423]
[1730303739144,3.72025,2688.0,2687.6,1.5785]
[1730303739355,3.72064,2687.8,2687.2,5.29972]
[1730303739508,3.72062,2687.8,2687.3,3.72114]
[1730303739931,3.7206,2687.8,2687.3,3.72114]
[1730303740148,3.72067,2687.7,2687.3,3.72114]
[1730303740445,3.72052,2687.8,2687.4,3.72104]
[1730303740852,3.0,2687.7,2687.4,3.72104]
[1730303741556,1.5001,2688.2,2687.5,1.6232]
[1730303741758,1.5001,2688.2,2687.5,5.34402]
[1730303741759,7.44063,2688.0,2687.5,5.34402]
[1730303741938,3.72039,2687.9,2687.5,5.34402]
[1730303742535,3.7203,2688.0,2687.6,3.72072]
[1730303742863,3.0,2688.1,2687.7,3.72057]
[1730303743695,3.78404569,2688.7,2688.2,3.71985]
[1730303743887,1.5175,2688.8,2688.3,3.71971]
[1730303744166,3.7191,2688.9,2688.4,1.6304]
[1730303744471,3.71929,2688.7,2688.4,1.6304]
[1730303744625,3.71947,2688.6,2688.4,1.6304]
[1730303744947,3.71947,2688.6,2688.1,3.72001]
[1730303744948,3.71947,2688.6,2688.2,1.6304]
[1730303745264,3.0,2688.3,2687.8,1.5422]
[1730303745465,6.71994,2688.3,2687.8,5.26267]
[1730303745638,3.71996,2688.2,2687.8,1.5422]
[1730303746867,3.0,2688.3,2687.9,3.72036]
[1730303747068,3.0,2688.4,2688.0,3.72013]
[1730303747244,1.6443,2688.8,2688.2,5.22095]
[1730303747245,3.71935,2688.7,2688.2,5.22095]
[1730303747567,3.71975,2688.4,2687.9,4.618607]
[1730303747876,3.71975,2688.4,2688.0,3.72019]
[1730303748168,3.71949,2688.6,2688.1,3.72008]
[1730303748332,3.71949,2688.6,2688.2,1.5703]
[1730303748532,3.71964,2688.5,2688.2,1.5703]
[1730303748775,3.71954,2688.5,2687.9,5.29059]
[1730303748956,3.71979,2688.4,2687.9,5.29059]
[1730303749361,3.71954,2688.5,2688.0,3.72023]
[1730303749669,3.71954,2688.5,2688.0,3.79462681]
[1730303750020,3.71954,2688.5,2688.0,3.72023]
[1730303750172,3.71941,2688.6,2688.1,3.72008]
[1730303750508,3.71941,2688.6,2688.2,3.71991]
[1730303751498,3.71941,2688.6,2688.1,3.71998]
[1730303751703,7.43894,2688.6,2688.1,3.71998]
[1730303752071,3.71941,2688.6,2688.1,3.71998]
[1730303753012,3.0,2688.9,2688.5,3.71947]
[1730303753181,7.43787,2689.0,2688.5,3.71947]
[1730303753747,3.71901,2688.9,2688.5,3.71947]
[1730303754012,3.71901,2688.9,2688.4,9.04306]
[1730303754310,3.71901,2688.9,2688.4,9.947366]
[1730303754715,3.71901,2688.9,2688.4,6.227756]
[1730303755071,3.71901,2688.9,2688.4,9.947366]
[1730303755315,8.25845,2689.2,2688.5,3.71952]
[1730303755609,3.0,2689.0,2688.4,6.227776]
[1730303755786,6.71895,2689.0,2688.5,4.3422976]
[1730303756298,6.71895,2689.0,2688.5,3.71952]
[1730303756497,10.43791,2689.0,2688.5,3.71952]
[1730303756711,6.71895,2689.0,2688.5,3.71952]
[1730303757116,10.43788,2689.0,2688.5,3.71952]
[1730303757286,6.71893,2689.0,2688.6,3.71937]
[1730303757496,6.71893,2689.0,2688.5,3.71952]
[1730303757497,6.71877,2689.1,2688.7,3.7192]
[1730303759995,8.25839,2689.2,2688.8,3.71913]
[1730303760516,3.0,2689.0,2688.6,3.71927]
[1730303762321,6.71893,2689.0,2688.5,3.71952]
[1730303762531,6.71893,2689.0,2688.6,3.71939]
[1730303763100,1.5398,2689.2,2688.4,1.6039]
[1730303763305,1.5398,2689.2,2688.1,3.56256969]
[1730303763306,3.71955,2688.5,2688.1,1.5588]
[1730303763503,5.34602,2688.6,2688.2,3.71989]
[1730303764002,3.71915,2688.8,2688.3,3.71979]
[1730303764237,3.71915,2688.8,2688.3,3.79421024]
[1730303764435,3.71915,2688.8,2688.4,3.71968]
[1730303768322,1.6288,2688.9,2688.1,3.72007]
[1730303768533,1.5098,2688.8,2688.1,3.72007]
[1730303768714,3.7196,2688.5,2688.1,3.72007]
[1730303769057,6.71948,2688.6,2688.2,3.71995]
[1730303769928,10.439,2688.6,2688.1,4.619874]
[1730303770118,10.439,2688.6,2688.1,3.72008]
[1730303770420,3.71955,2688.5,2688.1,3.72008]
[1730303770630,6.71941,2688.6,2688.1,3.72008]
[1730303770808,10.43893,2688.6,2688.1,3.72008]
[1730303771016,3.71954,2688.5,2688.1,3.72008]
[1730303771635,3.0,2688.7,2688.2,3.71988]
[1730303771839,6.71929,2688.7,2688.3,3.71978]
[1730303772152,6.71929,2688.7,2688.1,0.90720863]
[1730303772153,6.71929,2688.7,2688.1,4.7016802]
[1730303772315,3.71942,2688.6,2688.2,3.71994]
[1730303773017,3.0,2688.7,2688.2,3.71996]
[1730303773352,3.0,2688.9,2688.4,3.7196]
[1730303773551,3.0,2688.9,2688.5,3.71947]
[1730303773851,6.719,2688.9,2688.4,3.71967]
[1730303774029,3.71913,2688.8,2688.4,3.71967]
[1730303774216,3.71913,2688.8,2688.4,7.43927]
[1730303774617,3.71913,2688.8,2688.4,3.7196]
[1730303774849,6.71911,2688.9,2688.3,5.36286]
[1730303775008,3.71927,2688.7,2688.2,3.71985]
[1730303775214,1.5091,2688.8,2687.8,1.6431]
[1730303775417,3.72006,2688.2,2687.6,5.36379]
[1730303775722,3.72006,2688.2,2687.7,3.72055]
[1730303776275,1.5091,2688.3,2687.8,3.72048]
[1730303776419,5.22893,2688.3,2687.8,3.72048]
[1730303777141,3.71997,2688.2,2687.8,3.72048]
[1730303777514,5.22894,2688.3,2687.8,3.72051]
[1730303777736,5.22894,2688.3,2687.7,3.72055]
[1730303777950,5.22894,2688.3,2687.7,4.256915]
[1730303778142,8.94884,2688.3,2687.8,3.72051]
[1730303778456,5.22894,2688.3,2687.8,3.72051]
[1730303778618,5.22894,2688.3,2687.9,3.72037]
[1730303778813,1.5091,2688.3,2687.6,1.6431]
[1730303779129,1.64,2687.9,2687.4,3.72105]
[1730303779327,3.72052,2687.8,2687.4,3.72105]
[1730303779525,3.72079,2687.6,2687.1,3.72138]
[1730303779740,3.72079,2687.6,2687.2,3.72132]
[1730303780067,3.72079,2687.6,2687.0,3.72161]
[1730303780268,5.36108,2687.4,2686.9,5.25303]
[1730303781364,5.34634,2687.6,2687.1,3.72141]
[1730303781669,4.6255,2687.8,2687.1,4.16971104]
[1730303781867,1.6255,2688.5,2687.7,1.5945]
[1730303782158,3.71969,2688.4,2687.8,7.28307969]
[1730303782346,5.34505,2688.5,2688.0,3.72016]
[1730303782729,3.7197,2688.4,2688.0,3.72016]
[1730303783236,5.34507,2688.5,2688.0,3.72014]
[1730303783435,5.34482,2688.7,2688.2,3.71988]
[1730303783635,1.6255,2688.7,2688.2,3.71988]
[1730303783959,3.71958,2688.5,2688.0,3.72013]
[1730303784326,3.0,2688.5,2688.1,3.72009]
[1730303784827,3.0,2688.5,2688.0,4.62512072]
[1730303785052,3.0,2688.5,2688.0,3.72013]
[1730303787554,3.71947,2688.6,2687.9,0.07439578]
[1730303787873,3.0,2688.5,2688.0,3.72022]
[1730303788581,3.0,2688.5,2687.9,3.72036]
[1730303788582,6.71961,2688.5,2687.9,3.72036]
[1730303788787,3.0,2688.5,2687.9,4.38561754]
[1730303789077,3.71968,2688.4,2687.9,4.38561754]
[1730303789575,3.0,2688.5,2687.9,8.10588754]
[1730303789973,3.0,2688.5,2688.0,3.79462579]
[1730303790576,1.6255,2688.7,2688.1,5.26797]
[1730303790781,3.71917,2688.8,2688.2,4.32851949]
[1730303791074,3.71917,2688.8,2688.3,3.71978]
[1730303791578,3.71928,2688.7,2688.2,0.53423658]
[1730303791881,1.6005,2688.7,2687.8,5.2241]
[1730303792046,3.7199,2688.3,2687.8,1.5037]
[1730303793262,3.0,2688.6,2687.9,3.72028]
[1730303793556,3.71955,2688.5,2687.8,5.2242]
[1730303793854,1.6005,2688.7,2687.8,6.118696]
[1730303794055,3.71941,2688.6,2687.9,0.07439773]
[1730303794246,3.71955,2688.5,2687.9,3.79476773]
[1730303794452,3.71955,2688.5,2687.9,3.72037]
[1730303794778,5.31979,2688.7,2687.8,1.5037]
[1730303794779,3.71993,2688.3,2687.8,1.5037]
[1730303794986,3.72002,2688.2,2687.8,1.5037]
[1730303795182,3.71993,2688.3,2687.8,1.5037]
[1730303795348,7.43986,2688.3,2687.8,1.5037]
[1730303795889,3.71993,2688.3,2687.8,1.5037]
[1730303796091,5.25116,2688.2,2687.5,5.08746969]
[1730303796251,3.72032,2688.0,2687.5,1.5249]
[1730303798964,3.72039,2687.9,2687.3,3.72114]
[1730303799199,3.72024,2688.0,2687.3,5.28272]
[1730303799490,3.72024,2688.0,2687.3,6.16724897]
[1730303800260,3.72024,2688.0,2687.4,3.72102]
[1730303800960,3.72024,2688.0,2686.9,5.32978]
[1730303800961,3.72086,2687.6,2686.9,5.32978]
[1730303801164,5.22847,2687.7,2686.9,1.6081]
[1730303801165,3.72095,2687.5,2686.9,1.6081]
[1730303801399,3.72095,2687.5,2686.9,2.03402445]
[1730303801548,3.72095,2687.5,2686.9,5.75577445]
[1730303802103,5.22847,2687.7,2687.0,3.72154]
[1730303802104,3.0,2687.6,2687.0,3.72154]
[1730303802268,3.0,2687.8,2687.1,1.6342]
[1730303802467,3.0,2687.8,2687.2,3.72122]
[1730303803177,1.6425,2688.0,2687.1,1.6342]
[1730303803389,3.72085,2687.6,2687.1,1.6342]
[1730303804798,3.7212,2687.3,2686.8,1.5557]
[1730303804958,3.7214,2687.2,2686.8,1.5557]
[1730303806553,1.5304,2687.6,2686.8,1.5557]
[1730303806876,6.72067,2687.7,2687.1,1.6344]
[1730303807871,1.6028,2687.8,2687.2,0.0744194]
[1730303808058,6.72081,2687.6,2687.1,1.6344]
[1730303812690,3.72094,2687.5,2687.1,1.6344]
[1730303812878,6.72081,2687.6,2687.1,1.6344]
[1730303814501,3.72086,2687.6,2687.1,1.6344]
[1730303814700,3.0,2687.5,2687.1,1.6344]
[1730303815901,3.0,2687.5,2687.1,1.70881949]
[1730303817261,3.0,2687.5,2687.1,1.6344]
[1730303817693,6.72095,2687.5,2687.1,1.6344]
[1730303819783,3.72106,2687.4,2687.1,1.6344]
[1730303820276,3.72126,2687.3,2686.8,1.5306]
[1730303820805,3.72136,2687.2,2686.8,1.5306]
[1730303823998,3.72136,2687.2,2686.6,3.56256969]
[1730303823999,3.72186,2686.9,2686.4,1.5023]
[1730303824205,3.72182,2686.9,2686.4,1.5023]
[1730303824411,3.72203,2686.8,2686.4,1.5023]
[1730303824565,3.72219,2686.6,2686.4,1.5023]
[1730303825515,7.44445,2686.6,2686.4,1.5023]
[1730303825697,7.44445,2686.6,2686.0,3.72299]
[1730303825698,1.6066,2686.6,2686.1,1.5527]
[1730303825884,3.72257,2686.4,2686.1,1.5527]
[1730303826087,3.72265,2686.3,2685.9,1.5527]
[1730303826394,3.72275,2686.2,2685.9,1.5527]
[1730303827520,3.72293,2686.1,2685.6,1.5527]
[1730303828097,3.72293,2686.1,2685.6,5.27626]
[1730303828423,3.72293,2686.1,2685.6,1.5527]
[1730303828583,3.72307,2686.0,2685.6,1.5527]
[1730303829101,5.38387,2686.1,2685.6,1.5527]
[1730303830128,9.10682,2686.1,2685.6,1.5527]
[1730303830420,3.72308,2686.0,2685.6,1.5527]
[1730303830814,3.72308,2686.0,2685.6,1.5027]
[1730303830992,3.0,2686.0,2685.6,1.5027]
[1730303832201,4.5791,2686.4,2685.8,3.72315]
[1730303832405,3.0,2686.4,2685.7,3.6370365]
[1730303832728,3.0,2686.6,2686.1,3.72283]
[1730303832926,6.72217,2686.6,2686.0,3.7229]
[1730303833632,3.0,2686.4,2685.9,3.72312]
[1730303833794,3.0,2686.4,2686.0,1.5263]
[1730303834329,5.3012,2686.7,2686.0,1.5263]
[1730303834330,3.0,2686.6,2686.0,1.5263]
[1730303834529,6.7222,2686.6,2686.0,1.5263]
[1730303834826,6.7222,2686.6,2686.0,5.24923]
[1730303835031,3.72232,2686.5,2686.0,5.24923]
[1730303835328,3.0,2686.4,2686.0,1.5263]
[1730303835513,3.72259,2686.3,2686.0,1.5263]
[1730303835905,3.72226,2686.6,2686.0,5.24923]
[1730303836106,3.0,2686.5,2686.0,5.24923]
[1730303836509,3.72233,2686.5,2686.0,5.24923]
[1730303836697,3.72233,2686.5,2686.0,1.5263]
[1730303836698,3.0,2686.4,2686.0,1.5263]
[1730303837638,3.0,2686.4,2686.0,5.24927]
[1730303837843,3.72218,2686.6,2686.0,5.78165133]
[1730303838132,3.72184,2686.9,2686.3,3.7225]
[1730303838302,3.72197,2686.8,2686.3,3.7225]
[1730303838712,3.72206,2686.7,2686.3,0.07444276]
[1730303838997,3.72252,2686.4,2686.0,1.6273]
[1730303839602,3.72274,2686.2,2686.0,1.6273]
[1730303839996,3.7229,2686.1,2685.8,1.6138]